[Event "*** Titled Tuesday Blitz"]
[Site "Chess.com"]
[Date "2020.04.07"]
[Round "5"]
[White "GeorgMeier"]
[Black "Harut-1998"]
[Result "1/2-1/2"]
[WhiteElo "2997"]
[BlackElo "2660"]
[TimeControl "180+1"]
[EndTime "13:57:07 PDT"]
[Termination "Game drawn - insufficient material"]

1. Nf3 {[%clk 0:03:00.9]} 1... d5 {[%clk 0:02:59]} 2. d4 {[%clk 0:02:59]} 2...
Nf6 {[%clk 0:02:57.9]} 3. c4 {[%clk 0:02:59.1]} 3... e6 {[%clk 0:02:58]} 4. Nc3
{[%clk 0:02:58.3]} 4... Bb4 {[%clk 0:02:57.4]} 5. Bg5 {[%clk 0:02:52.1]} 5...
dxc4 {[%clk 0:02:57.2]} 6. e4 {[%clk 0:02:50.4]} 6... c5 {[%clk 0:02:56]} 7.
Bxc4 {[%clk 0:02:48.2]} 7... cxd4 {[%clk 0:02:54.6]} 8. Nxd4 {[%clk 0:02:45.9]}
8... Bxc3+ {[%clk 0:02:54.6]} 9. bxc3 {[%clk 0:02:44.6]} 9... Qa5 {[%clk
0:02:55.5]} 10. Bb5+ {[%clk 0:02:43.8]} 10... Bd7 {[%clk 0:02:55.6]} 11. Bxf6
{[%clk 0:02:42.5]} 11... gxf6 {[%clk 0:02:55.3]} 12. Qb3 {[%clk 0:02:20.2]}
12... Bxb5 {[%clk 0:02:46.4]} 13. Nxb5 {[%clk 0:02:18.9]} 13... O-O {[%clk
0:02:46]} 14. O-O {[%clk 0:02:14]} 14... Nc6 {[%clk 0:02:36.8]} 15. c4 {[%clk
0:02:13.6]} 15... Rad8 {[%clk 0:02:20]} 16. Qg3+ {[%clk 0:02:11.2]} 16... Kh8
{[%clk 0:02:19.2]} 17. Qh4 {[%clk 0:02:00.8]} 17... Kg7 {[%clk 0:02:17.2]} 18.
Rab1 {[%clk 0:01:51.7]} 18... Ne5 {[%clk 0:02:15]} 19. Rb3 {[%clk 0:01:44]}
19... Ng6 {[%clk 0:02:09.6]} 20. Qh5 {[%clk 0:01:38.5]} 20... h6 {[%clk
0:01:59.9]} 21. c5 {[%clk 0:01:29.9]} 21... a6 {[%clk 0:01:29.3]} 22. Rh3 {[%clk
0:01:24]} 22... Rh8 {[%clk 0:01:28]} 23. Nd6 {[%clk 0:01:23.4]} 23... Rd7 {[%clk
0:00:51.7]} 24. f4 {[%clk 0:01:01.5]} 24... b6 {[%clk 0:00:50.5]} 25. Nxf7
{[%clk 0:00:35.9]} 25... Rxf7 {[%clk 0:00:35.8]} 26. Rg3 {[%clk 0:00:34.8]}
26... Qxc5+ {[%clk 0:00:35.2]} 27. Qxc5 {[%clk 0:00:34.8]} 27... bxc5 {[%clk
0:00:36.1]} 28. f5 {[%clk 0:00:35.6]} 28... exf5 {[%clk 0:00:22.8]} 29. exf5
{[%clk 0:00:36.5]} 29... Rg8 {[%clk 0:00:22]} 30. Rc1 {[%clk 0:00:25.1]} 30...
Kh7 {[%clk 0:00:19]} 31. fxg6+ {[%clk 0:00:22.5]} 31... Rxg6 {[%clk 0:00:19.9]}
32. Rxg6 {[%clk 0:00:23]} 32... Kxg6 {[%clk 0:00:20.8]} 33. Rxc5 {[%clk
0:00:23.1]} 33... Rb7 {[%clk 0:00:16.8]} 34. Ra5 {[%clk 0:00:22.2]} 34... Rb6
{[%clk 0:00:16.2]} 35. Kf2 {[%clk 0:00:21.9]} 35... Re6 {[%clk 0:00:16.8]} 36.
g4 {[%clk 0:00:20.5]} 36... Rd6 {[%clk 0:00:16]} 37. h4 {[%clk 0:00:19.7]} 37...
h5 {[%clk 0:00:14.3]} 38. gxh5+ {[%clk 0:00:12.9]} 38... Kh6 {[%clk 0:00:14.4]}
39. Ke3 {[%clk 0:00:13.3]} 39... Re6+ {[%clk 0:00:13.8]} 40. Kd4 {[%clk
0:00:11.4]} 40... Rb6 {[%clk 0:00:08.1]} 41. a3 {[%clk 0:00:10.7]} 41... Rc6
{[%clk 0:00:08]} 42. a4 {[%clk 0:00:07.6]} 42... Rb6 {[%clk 0:00:07.7]} 43. Kc4
{[%clk 0:00:07.8]} 43... Rc6+ {[%clk 0:00:07.7]} 44. Kb4 {[%clk 0:00:07.6]}
44... Rb6+ {[%clk 0:00:07.5]} 45. Ka3 {[%clk 0:00:07.6]} 45... Re6 {[%clk
0:00:07.1]} 46. Rf5 {[%clk 0:00:07.3]} 46... Re3+ {[%clk 0:00:05.5]} 47. Kb4
{[%clk 0:00:07.6]} 47... Re4+ {[%clk 0:00:05.9]} 48. Ka5 {[%clk 0:00:07.5]}
48... Re5+ {[%clk 0:00:06.3]} 49. Rxe5 {[%clk 0:00:04.5]} 49... fxe5 {[%clk
0:00:07.2]} 50. Kb4 {[%clk 0:00:04.2]} 50... Kxh5 {[%clk 0:00:06.9]} 51. Kc4
{[%clk 0:00:04.7]} 51... Kxh4 {[%clk 0:00:06.3]} 52. Kd5 {[%clk 0:00:05.2]}
52... Kg5 {[%clk 0:00:06.3]} 53. Kxe5 {[%clk 0:00:05.7]} 53... a5 {[%clk
0:00:06.8]} 54. Kd6 {[%clk 0:00:05.9]} 54... Kf6 {[%clk 0:00:07.1]} 55. Kc6
{[%clk 0:00:06.6]} 55... Ke7 {[%clk 0:00:07.3]} 56. Kb6 {[%clk 0:00:07.5]} 56...
Kd7 {[%clk 0:00:07.3]} 57. Kxa5 {[%clk 0:00:08.4]} 57... Kc8 {[%clk 0:00:07.7]}
58. Kb5 {[%clk 0:00:09.1]} 58... Kb8 {[%clk 0:00:08.6]} 59. a5 {[%clk
0:00:09.1]} 59... Ka8 {[%clk 0:00:09.5]} 60. a6 {[%clk 0:00:09.7]} 60... Kb8
{[%clk 0:00:10.4]} 61. Kb4 {[%clk 0:00:10.4]} 61... Ka8 {[%clk 0:00:11.3]} 62.
a7 {[%clk 0:00:11]} 62... Kxa7 {[%clk 0:00:11.2]} 1/2-1/2

[Event "*** Titled Tuesday Blitz"]
[Site "Chess.com"]
[Date "2020.04.07"]
[Round "5"]
[White "valeriocarnicelli"]
[Black "politeplayer"]
[Result "1/2-1/2"]
[WhiteElo "2602"]
[BlackElo "2217"]
[TimeControl "180+1"]
[EndTime "13:57:07 PDT"]
[Termination "Game drawn by agreement"]

1. e4 {[%clk 0:02:59]} 1... e6 {[%clk 0:02:59.7]} 2. d4 {[%clk 0:02:30.8]} 2...
d5 {[%clk 0:02:58.7]} 3. Nc3 {[%clk 0:02:30.7]} 3... dxe4 {[%clk 0:02:58.7]} 4.
Nxe4 {[%clk 0:02:30.8]} 4... Nd7 {[%clk 0:02:59.3]} 5. Nf3 {[%clk 0:02:30.5]}
5... Ngf6 {[%clk 0:02:59.7]} 6. Nxf6+ {[%clk 0:02:29.4]} 6... Nxf6 {[%clk
0:03:00]} 7. Bd3 {[%clk 0:02:29.5]} 7... c5 {[%clk 0:03:00.4]} 8. c3 {[%clk
0:02:27.8]} 8... a6 {[%clk 0:02:49.4]} 9. O-O {[%clk 0:02:27.5]} 9... cxd4
{[%clk 0:02:43.9]} 10. cxd4 {[%clk 0:02:27.5]} 10... Bd7 {[%clk 0:02:37.1]} 11.
Ne5 {[%clk 0:02:26.1]} 11... Bd6 {[%clk 0:02:33.6]} 12. Bg5 {[%clk 0:01:56.7]}
12... Rc8 {[%clk 0:02:26.3]} 13. Qf3 {[%clk 0:01:46.5]} 13... Bc6 {[%clk
0:02:14.2]} 14. Nxc6 {[%clk 0:01:37.9]} 14... Rxc6 {[%clk 0:02:12]} 15. d5
{[%clk 0:01:37.4]} 15... exd5 {[%clk 0:02:03.8]} 16. Rfe1+ {[%clk 0:01:08.4]}
16... Be7 {[%clk 0:02:03.7]} 17. Qh3 {[%clk 0:01:05]} 17... h6 {[%clk
0:01:50.8]} 18. Bd2 {[%clk 0:01:01.5]} 18... O-O {[%clk 0:01:43.8]} 19. Bc3
{[%clk 0:01:00.4]} 19... d4 {[%clk 0:01:25.9]} 20. Bd2 {[%clk 0:01:00.3]} 20...
Re8 {[%clk 0:01:09.7]} 21. Qf5 {[%clk 0:00:48.3]} 21... Qc8 {[%clk 0:00:58.9]}
22. Qf3 {[%clk 0:00:45.2]} 22... Qg4 {[%clk 0:00:47.2]} 23. Qxg4 {[%clk
0:00:35.7]} 23... Nxg4 {[%clk 0:00:47]} 24. Bb4 {[%clk 0:00:33.8]} 24... Re6
{[%clk 0:00:40.3]} 25. Rxe6 {[%clk 0:00:33.3]} 25... fxe6 {[%clk 0:00:40.2]} 26.
Bg6 {[%clk 0:00:33.4]} 26... Bxb4 {[%clk 0:00:29]} 27. Bxe8 {[%clk 0:00:33.3]}
27... d3 {[%clk 0:00:28]} 28. Bg6 {[%clk 0:00:28.5]} 28... Bc5 {[%clk
0:00:23.8]} 29. Bxd3 {[%clk 0:00:22]} 29... Nxf2 {[%clk 0:00:23]} 30. Be2 {[%clk
0:00:10.4]} 30... Ng4+ {[%clk 0:00:22.3]} 31. Kf1 {[%clk 0:00:09.9]} 31... Ne3+
{[%clk 0:00:22.1]} 32. Ke1 {[%clk 0:00:07.7]} 32... Nc2+ {[%clk 0:00:22]} 33.
Kd2 {[%clk 0:00:08]} 33... Nxa1 {[%clk 0:00:22]} 34. Kc1 {[%clk 0:00:08.3]}
34... Bd6 {[%clk 0:00:18]} 35. h3 {[%clk 0:00:07.9]} 35... b5 {[%clk 0:00:16.4]}
36. Kb1 {[%clk 0:00:08.3]} 36... Nb3 {[%clk 0:00:16.3]} 37. axb3 {[%clk
0:00:08.3]} 37... Kf7 {[%clk 0:00:16.4]} 38. Kc2 {[%clk 0:00:08.1]} 38... Kf6
{[%clk 0:00:16.6]} 39. Kc3 {[%clk 0:00:08.6]} 39... Be5+ {[%clk 0:00:16.7]} 40.
Kb4 {[%clk 0:00:08.3]} 40... Bxb2 {[%clk 0:00:16]} 41. Ka5 {[%clk 0:00:08.6]}
41... Bc3+ {[%clk 0:00:14.4]} 42. Kxa6 {[%clk 0:00:08.6]} 42... b4 {[%clk
0:00:14.9]} 43. Kb5 {[%clk 0:00:09.1]} 43... Ke5 {[%clk 0:00:15]} 44. Kc4 {[%clk
0:00:09.7]} 44... Ke4 {[%clk 0:00:14.6]} 45. Bf3+ {[%clk 0:00:09.7]} 45... Ke3
{[%clk 0:00:14.7]} 46. Bg4 {[%clk 0:00:09.3]} 46... e5 {[%clk 0:00:14.1]} 47.
Kd5 {[%clk 0:00:09.3]} 47... e4 {[%clk 0:00:13.5]} 48. Bf5 {[%clk 0:00:09.2]}
48... g5 {[%clk 0:00:12.1]} 49. Bxe4 {[%clk 0:00:09.2]} 49... Kf4 {[%clk
0:00:10.8]} 50. Bf3 {[%clk 0:00:08.9]} 50... Be1 {[%clk 0:00:09.9]} 1/2-1/2

[Event "*** Titled Tuesday Blitz"]
[Site "Chess.com"]
[Date "2020.04.07"]
[Round "5"]
[White "OK97"]
[Black "Sawyer2908"]
[Result "1-0"]
[WhiteElo "2749"]
[BlackElo "2532"]
[TimeControl "180+1"]
[EndTime "13:57:08 PDT"]
[Termination "OK97 won on time"]

1. Nf3 {[%clk 0:03:00]} 1... Nf6 {[%clk 0:02:59.1]} 2. g3 {[%clk 0:02:59.6]}
2... b5 {[%clk 0:02:57]} 3. Bg2 {[%clk 0:02:59.7]} 3... Bb7 {[%clk 0:02:57]} 4.
O-O {[%clk 0:02:59.7]} 4... e6 {[%clk 0:02:56.6]} 5. d4 {[%clk 0:02:53.1]} 5...
Be7 {[%clk 0:02:54.3]} 6. Bg5 {[%clk 0:02:52.8]} 6... O-O {[%clk 0:02:48.7]} 7.
Qd3 {[%clk 0:02:52.6]} 7... Be4 {[%clk 0:02:40.7]} 8. Qxb5 {[%clk 0:02:45.7]}
8... Nc6 {[%clk 0:02:35.2]} 9. Nbd2 {[%clk 0:02:32.4]} 9... Rb8 {[%clk
0:02:12.3]} 10. Qc4 {[%clk 0:02:32.4]} 10... Bd5 {[%clk 0:01:45.3]} 11. Qd3
{[%clk 0:02:26.7]} 11... Rxb2 {[%clk 0:01:31.9]} 12. Bxf6 {[%clk 0:02:18.7]}
12... gxf6 {[%clk 0:01:29.6]} 13. e4 {[%clk 0:01:50.5]} 13... Nb4 {[%clk
0:01:28.2]} 14. Qe2 {[%clk 0:01:50.8]} 14... Bb7 {[%clk 0:01:18.6]} 15. c3
{[%clk 0:01:49.3]} 15... Ba6 {[%clk 0:01:14.3]} 16. Qe3 {[%clk 0:01:43.4]} 16...
Nc2 {[%clk 0:01:08.7]} 17. Qf4 {[%clk 0:01:38.7]} 17... Nxa1 {[%clk 0:01:05.4]}
18. Rxa1 {[%clk 0:01:37.6]} 18... Kh8 {[%clk 0:00:59.7]} 19. c4 {[%clk
0:01:27.6]} 19... Rg8 {[%clk 0:00:56.2]} 20. Bf1 {[%clk 0:01:13.6]} 20... Qb8
{[%clk 0:00:50.5]} 21. Qh4 {[%clk 0:01:07.5]} 21... Qb4 {[%clk 0:00:47.6]} 22.
e5 {[%clk 0:00:50.7]} 22... fxe5 {[%clk 0:00:41.8]} 23. Qh6 {[%clk 0:00:42.4]}
23... Rg6 {[%clk 0:00:35.6]} 24. Qe3 {[%clk 0:00:39.9]} 24... d6 {[%clk
0:00:28]} 25. a3 {[%clk 0:00:38.2]} 25... Qb6 {[%clk 0:00:24.8]} 26. c5 {[%clk
0:00:37]} 26... Qb7 {[%clk 0:00:24.2]} 27. dxe5 {[%clk 0:00:29.6]} 27... Bxf1
{[%clk 0:00:23]} 28. exd6 {[%clk 0:00:28]} 28... cxd6 {[%clk 0:00:22.5]} 29.
Rxf1 {[%clk 0:00:24.8]} 29... Qd5 {[%clk 0:00:21.3]} 30. Ne4 {[%clk 0:00:20.1]}
30... dxc5 {[%clk 0:00:18.7]} 31. Qc3+ {[%clk 0:00:19.3]} 31... Kg8 {[%clk
0:00:18.5]} 32. Qxb2 {[%clk 0:00:16.8]} 32... Qxe4 {[%clk 0:00:18.7]} 33. Ne5
{[%clk 0:00:15.7]} 33... Rg5 {[%clk 0:00:14.9]} 34. Nd7 {[%clk 0:00:06.4]} 34...
Qf5 {[%clk 0:00:10.4]} 35. Qb8+ {[%clk 0:00:05.5]} 35... Kg7 {[%clk 0:00:10.5]}
36. Qe8 {[%clk 0:00:05.9]} 36... Bd6 {[%clk 0:00:08.6]} 37. Rd1 {[%clk
0:00:06.2]} 37... Qc2 {[%clk 0:00:01.6]} 38. Rxd6 {[%clk 0:00:05.5]} 38... Rf5
{[%clk 0:00:01.6]} 39. f4 {[%clk 0:00:02.8]} 39... Qc1+ {[%clk 0:00:01.1]} 40.
Kg2 {[%clk 0:00:02.7]} 40... Qc2+ {[%clk 0:00:02]} 41. Kg1 {[%clk 0:00:02.3]}
41... Qc1+ {[%clk 0:00:02.9]} 42. Kf2 {[%clk 0:00:02.8]} 42... Qc2+ {[%clk
0:00:03.8]} 43. Ke1 {[%clk 0:00:02.8]} 43... Qc1+ {[%clk 0:00:04.1]} 44. Ke2
{[%clk 0:00:03.3]} 44... Qc2+ {[%clk 0:00:04.1]} 45. Rd2 {[%clk 0:00:03.7]}
45... Qe4+ {[%clk 0:00:03.9]} 46. Kf2 {[%clk 0:00:04.2]} 46... Rd5 {[%clk
0:00:01.7]} 47. Qf8+ {[%clk 0:00:04.2]} 47... Kg6 {[%clk 0:00:01.8]} 48. Qg8+
{[%clk 0:00:04.6]} 48... Kh6 {[%clk 0:00:01.8]} 49. Rxd5 {[%clk 0:00:04.5]}
49... Qxd5 {[%clk 0:00:01.4]} 50. Qg5+ {[%clk 0:00:03.5]} 1-0

[Event "*** Titled Tuesday Blitz"]
[Site "Chess.com"]
[Date "2020.04.07"]
[Round "5"]
[White "Jadeit90"]
[Black "tamarozi99"]
[Result "1/2-1/2"]
[WhiteElo "2221"]
[BlackElo "1928"]
[TimeControl "180+1"]
[EndTime "13:57:08 PDT"]
[Termination "Game drawn by agreement"]

1. g3 {[%clk 0:03:00.9]} 1... g6 {[%clk 0:02:58.2]} 2. Bg2 {[%clk 0:03:00.9]}
2... Bg7 {[%clk 0:02:57.6]} 3. e4 {[%clk 0:02:57.4]} 3... c5 {[%clk 0:02:56.3]}
4. Nc3 {[%clk 0:02:55.6]} 4... d6 {[%clk 0:02:56]} 5. d3 {[%clk 0:02:51.3]} 5...
e6 {[%clk 0:02:56]} 6. Be3 {[%clk 0:02:51.4]} 6... Nc6 {[%clk 0:02:55.1]} 7. Qd2
{[%clk 0:02:51.7]} 7... h6 {[%clk 0:02:50.5]} 8. h4 {[%clk 0:02:51.4]} 8... Rb8
{[%clk 0:02:49.5]} 9. Nd1 {[%clk 0:02:50.4]} 9... b5 {[%clk 0:02:46.9]} 10. f4
{[%clk 0:02:49.5]} 10... Nge7 {[%clk 0:02:46.5]} 11. h5 {[%clk 0:02:49.3]} 11...
Qa5 {[%clk 0:02:34.9]} 12. c3 {[%clk 0:02:42.5]} 12... b4 {[%clk 0:02:29.5]} 13.
c4 {[%clk 0:02:42.8]} 13... Nd4 {[%clk 0:02:25.4]} 14. hxg6 {[%clk 0:02:29.3]}
14... fxg6 {[%clk 0:02:22.1]} 15. Bxd4 {[%clk 0:02:22.3]} 15... Bxd4 {[%clk
0:02:15.2]} 16. Nf3 {[%clk 0:02:22.1]} 16... Bg7 {[%clk 0:02:14.6]} 17. O-O
{[%clk 0:02:21.1]} 17... O-O {[%clk 0:02:12.6]} 18. Nf2 {[%clk 0:02:19.1]} 18...
Nc6 {[%clk 0:02:11.8]} 19. Ng4 {[%clk 0:01:57]} 19... b3 {[%clk 0:01:45.3]} 20.
Qxa5 {[%clk 0:01:51.3]} 20... Nxa5 {[%clk 0:01:45.6]} 21. axb3 {[%clk
0:01:51.5]} 21... Nxb3 {[%clk 0:01:44.6]} 22. Rxa7 {[%clk 0:01:51.5]} 22... Bxb2
{[%clk 0:01:42.3]} 23. Rb1 {[%clk 0:01:41.1]} 23... Bg7 {[%clk 0:01:35.3]} 24.
Ra3 {[%clk 0:01:37.7]} 24... e5 {[%clk 0:01:30.2]} 25. Ne3 {[%clk 0:01:26]}
25... exf4 {[%clk 0:01:16.8]} 26. gxf4 {[%clk 0:01:25.1]} 26... Rxf4 {[%clk
0:00:50.5]} 27. Raxb3 {[%clk 0:01:23.2]} 27... Rxb3 {[%clk 0:00:51.4]} 28. Rxb3
{[%clk 0:01:24.1]} 28... g5 {[%clk 0:00:39.8]} 29. Rb8 {[%clk 0:01:22.3]} 29...
Rf8 {[%clk 0:00:37.9]} 30. Nd5 {[%clk 0:01:22.5]} 30... Kf7 {[%clk 0:00:34.5]}
31. Rb6 {[%clk 0:01:09.3]} 31... Ke6 {[%clk 0:00:27.7]} 32. Bh3+ {[%clk
0:01:04.4]} 32... Kf7 {[%clk 0:00:22.7]} 33. Bxc8 {[%clk 0:01:03.1]} 33... Rxc8
{[%clk 0:00:22.4]} 34. Rxd6 {[%clk 0:01:03.3]} 34... Ra8 {[%clk 0:00:22.2]} 35.
Rd7+ {[%clk 0:00:56.1]} 35... Kg6 {[%clk 0:00:19.7]} 36. Ne7+ {[%clk 0:00:53.8]}
36... Kh5 {[%clk 0:00:18.1]} 37. Nf5 {[%clk 0:00:54.1]} 37... Bb2 {[%clk
0:00:13.6]} 38. Kg2 {[%clk 0:00:52.5]} 38... Kg4 {[%clk 0:00:11.2]} 39. Nxh6+
{[%clk 0:00:50.3]} 39... Kf4 {[%clk 0:00:11.1]} 40. Rf7+ {[%clk 0:00:49.4]}
40... Ke3 {[%clk 0:00:11.5]} 41. Rd7 {[%clk 0:00:38.1]} 41... Bd4 {[%clk
0:00:11.3]} 42. Nf5+ {[%clk 0:00:32.5]} 42... Kxd3 {[%clk 0:00:09.6]} 43. N5xd4
{[%clk 0:00:32.7]} 43... cxd4 {[%clk 0:00:09]} 44. Rxd4+ {[%clk 0:00:33.6]}
44... Ke3 {[%clk 0:00:06.3]} 45. Kg3 {[%clk 0:00:30.9]} 45... Rf8 {[%clk
0:00:04.1]} 46. Rd7 {[%clk 0:00:18.7]} 46... Rxf3+ {[%clk 0:00:03.5]} 47. Kg4
{[%clk 0:00:19.2]} 47... Rf4+ {[%clk 0:00:03.8]} 48. Kxg5 {[%clk 0:00:19.5]}
48... Rxe4 {[%clk 0:00:04.7]} 49. c5 {[%clk 0:00:19.9]} 49... Rc4 {[%clk
0:00:04.5]} 50. Rd5 {[%clk 0:00:18]} 50... Ke4 {[%clk 0:00:04.5]} 1/2-1/2

[Event "*** Titled Tuesday Blitz"]
[Site "Chess.com"]
[Date "2020.04.07"]
[Round "5"]
[White "AndrewMaco"]
[Black "Alexander_Donchenko"]
[Result "0-1"]
[WhiteElo "2630"]
[BlackElo "2859"]
[TimeControl "180+1"]
[EndTime "13:57:09 PDT"]
[Termination "Alexander_Donchenko won by resignation"]

1. e4 {[%clk 0:03:00.2]} 1... c6 {[%clk 0:02:57.4]} 2. d4 {[%clk 0:02:59.8]}
2... d5 {[%clk 0:02:58.2]} 3. e5 {[%clk 0:03:00.3]} 3... Bf5 {[%clk 0:02:57.4]}
4. Nf3 {[%clk 0:03:00.3]} 4... e6 {[%clk 0:02:56.2]} 5. Be2 {[%clk 0:03:00]}
5... Ne7 {[%clk 0:02:54.8]} 6. c3 {[%clk 0:02:59.8]} 6... h6 {[%clk 0:02:54.7]}
7. O-O {[%clk 0:02:59.6]} 7... Nd7 {[%clk 0:02:54.6]} 8. Nbd2 {[%clk 0:02:58.8]}
8... a5 {[%clk 0:02:53.7]} 9. a4 {[%clk 0:02:57.2]} 9... Bh7 {[%clk 0:02:52.6]}
10. Nb3 {[%clk 0:02:49.7]} 10... Qb6 {[%clk 0:02:52.3]} 11. c4 {[%clk
0:02:45.8]} 11... dxc4 {[%clk 0:02:50.3]} 12. Bxc4 {[%clk 0:02:46.7]} 12... Nd5
{[%clk 0:02:50.5]} 13. Bd2 {[%clk 0:02:40.1]} 13... Be7 {[%clk 0:02:48.7]} 14.
Re1 {[%clk 0:02:33.5]} 14... O-O {[%clk 0:02:48.1]} 15. Qe2 {[%clk 0:02:15.8]}
15... Rfd8 {[%clk 0:02:45.8]} 16. Rac1 {[%clk 0:02:13.5]} 16... Nf8 {[%clk
0:02:38.9]} 17. g3 {[%clk 0:02:08.9]} 17... Ng6 {[%clk 0:02:27.4]} 18. Red1
{[%clk 0:01:53.1]} 18... Bb4 {[%clk 0:02:18.1]} 19. Bxb4 {[%clk 0:01:46.2]}
19... Qxb4 {[%clk 0:02:19]} 20. Nc5 {[%clk 0:01:44.6]} 20... b6 {[%clk
0:02:11.1]} 21. Nb7 {[%clk 0:01:42.5]} 21... Rd7 {[%clk 0:02:06.4]} 22. Nd6
{[%clk 0:01:42.8]} 22... Qxa4 {[%clk 0:01:55.4]} 23. Bd3 {[%clk 0:01:20.5]}
23... Nf8 {[%clk 0:01:27.6]} 24. Bxh7+ {[%clk 0:01:14.8]} 24... Nxh7 {[%clk
0:01:27.6]} 25. Rd2 {[%clk 0:01:03.6]} 25... Nf8 {[%clk 0:01:03.4]} 26. Rdc2
{[%clk 0:01:03]} 26... Nb4 {[%clk 0:00:53.2]} 27. Rc4 {[%clk 0:00:57.8]} 27...
Rad8 {[%clk 0:00:51.8]} 28. Kg2 {[%clk 0:00:36.9]} 28... Ng6 {[%clk 0:00:47.6]}
29. R4c3 {[%clk 0:00:32.6]} 29... Nd5 {[%clk 0:00:42.6]} 30. Qd2 {[%clk
0:00:13.2]} 30... Nxc3 {[%clk 0:00:41.5]} 31. Rxc3 {[%clk 0:00:13.9]} 31... Rxd6
{[%clk 0:00:36.7]} 32. exd6 {[%clk 0:00:14.8]} 32... Rxd6 {[%clk 0:00:37.3]} 33.
h4 {[%clk 0:00:15.1]} 33... Qb4 {[%clk 0:00:34]} 34. h5 {[%clk 0:00:15.3]} 34...
Ne7 {[%clk 0:00:34.1]} 35. Qc2 {[%clk 0:00:13.9]} 35... Qb5 {[%clk 0:00:31.4]}
36. Rb3 {[%clk 0:00:14.3]} 36... Qxh5 {[%clk 0:00:27.4]} 37. Rxb6 {[%clk
0:00:13.6]} 37... Qd5 {[%clk 0:00:25.2]} 38. Rb8+ {[%clk 0:00:10.9]} 38... Rd8
{[%clk 0:00:25.3]} 39. Rb7 {[%clk 0:00:09]} 39... Nf5 {[%clk 0:00:23.4]} 40. Qc3
{[%clk 0:00:07]} 40... Nxd4 {[%clk 0:00:21.1]} 41. Qxd4 {[%clk 0:00:07.3]} 41...
Qxd4 {[%clk 0:00:22]} 42. Nxd4 {[%clk 0:00:08.2]} 42... Rxd4 {[%clk 0:00:22.4]}
43. Rc7 {[%clk 0:00:08.8]} 43... Rb4 {[%clk 0:00:22.3]} 44. Rxc6 {[%clk
0:00:07.6]} 44... Rxb2 {[%clk 0:00:22.5]} 45. Ra6 {[%clk 0:00:08.2]} 45... Ra2
{[%clk 0:00:22.7]} 46. g4 {[%clk 0:00:07.8]} 46... g6 {[%clk 0:00:22.1]} 47. Kg3
{[%clk 0:00:07.9]} 47... Kg7 {[%clk 0:00:22.5]} 48. f4 {[%clk 0:00:08.4]} 48...
a4 {[%clk 0:00:22.8]} 49. g5 {[%clk 0:00:08.5]} 49... hxg5 {[%clk 0:00:22.6]}
50. fxg5 {[%clk 0:00:09.4]} 50... a3 {[%clk 0:00:23]} 51. Ra7 {[%clk 0:00:09.7]}
51... Ra1 {[%clk 0:00:23.3]} 52. Kg2 {[%clk 0:00:09.9]} 52... a2 {[%clk
0:00:23.7]} 53. Kh2 {[%clk 0:00:10]} 53... Kg8 {[%clk 0:00:23.8]} 54. Kg2 {[%clk
0:00:10.2]} 54... Kf8 {[%clk 0:00:24]} 55. Kh2 {[%clk 0:00:10.7]} 55... Ke8
{[%clk 0:00:24.5]} 56. Kg2 {[%clk 0:00:11.3]} 56... Kd8 {[%clk 0:00:25.1]} 57.
Kh2 {[%clk 0:00:11.5]} 57... Kc8 {[%clk 0:00:25.5]} 58. Kg2 {[%clk 0:00:11.9]}
58... Kb8 {[%clk 0:00:26]} 59. Ra5 {[%clk 0:00:10.3]} 59... Kc7 {[%clk
0:00:26.3]} 60. Ra8 {[%clk 0:00:10]} 60... Kd6 {[%clk 0:00:26.3]} 61. Kh2 {[%clk
0:00:09.2]} 61... Ke5 {[%clk 0:00:26.4]} 62. Ra5+ {[%clk 0:00:05.2]} 62... Kf4
{[%clk 0:00:26.5]} 63. Kg2 {[%clk 0:00:05.6]} 63... e5 {[%clk 0:00:26.7]} 0-1

[Event "*** Titled Tuesday Blitz"]
[Site "Chess.com"]
[Date "2020.04.07"]
[Round "5"]
[White "fireheart92"]
[Black "Sibelephant"]
[Result "0-1"]
[WhiteElo "2888"]
[BlackElo "3159"]
[TimeControl "180+1"]
[EndTime "13:57:13 PDT"]
[Termination "Sibelephant won on time"]

1. d4 {[%clk 0:03:00.9]} 1... d5 {[%clk 0:02:59.8]} 2. c4 {[%clk 0:03:00.8]}
2... c6 {[%clk 0:03:00.1]} 3. Nc3 {[%clk 0:03:00.4]} 3... Nf6 {[%clk 0:03:00.4]}
4. cxd5 {[%clk 0:02:57.9]} 4... cxd5 {[%clk 0:03:00.1]} 5. Bf4 {[%clk 0:02:58]}
5... Nc6 {[%clk 0:03:00.2]} 6. e3 {[%clk 0:02:57.8]} 6... a6 {[%clk 0:03:00.3]}
7. Be2 {[%clk 0:02:57.9]} 7... Bf5 {[%clk 0:02:57.8]} 8. Nf3 {[%clk 0:02:58.1]}
8... e6 {[%clk 0:02:57.6]} 9. Qb3 {[%clk 0:02:53]} 9... Bd6 {[%clk 0:02:57.2]}
10. Qxb7 {[%clk 0:02:45.6]} 10... Na5 {[%clk 0:02:56.5]} 11. Qxa8 {[%clk
0:02:44.6]} 11... Qxa8 {[%clk 0:02:56.5]} 12. Bxd6 {[%clk 0:02:44.9]} 12... Nc4
{[%clk 0:02:55.8]} 13. Bxc4 {[%clk 0:02:42.7]} 13... dxc4 {[%clk 0:02:56]} 14.
O-O {[%clk 0:02:24.7]} 14... Ne4 {[%clk 0:02:56.1]} 15. Ba3 {[%clk 0:01:45.6]}
15... Nxc3 {[%clk 0:02:46.7]} 16. bxc3 {[%clk 0:01:46.5]} 16... f6 {[%clk
0:02:42.9]} 17. Nd2 {[%clk 0:01:39.9]} 17... Bd3 {[%clk 0:02:41.2]} 18. Rfe1
{[%clk 0:01:39.2]} 18... Kf7 {[%clk 0:02:40.4]} 19. e4 {[%clk 0:01:39.4]} 19...
Qc6 {[%clk 0:02:34.6]} 20. d5 {[%clk 0:01:18.4]} 20... exd5 {[%clk 0:02:34.4]}
21. exd5 {[%clk 0:01:19.3]} 21... Qxd5 {[%clk 0:02:31.8]} 22. Re7+ {[%clk
0:01:19.3]} 22... Kg6 {[%clk 0:02:32.3]} 23. Rae1 {[%clk 0:01:19.3]} 23... h6
{[%clk 0:01:50.1]} 24. Nf3 {[%clk 0:01:17.9]} 24... Rb8 {[%clk 0:01:36.5]} 25.
Nd4 {[%clk 0:01:13.5]} 25... Rb1 {[%clk 0:01:26.7]} 26. Rxb1 {[%clk 0:01:12.1]}
26... Bxb1 {[%clk 0:01:27.3]} 27. h3 {[%clk 0:01:10.1]} 27... Bf5 {[%clk
0:01:16.3]} 28. Rc7 {[%clk 0:00:53.2]} 28... Qa5 {[%clk 0:01:08.9]} 29. Bd6
{[%clk 0:00:31]} 29... Qxc3 {[%clk 0:01:08.8]} 30. Nc6 {[%clk 0:00:15]} 30...
Be4 {[%clk 0:00:56.7]} 31. Ne7+ {[%clk 0:00:14.4]} 31... Kh7 {[%clk 0:00:54.6]}
32. Bg3 {[%clk 0:00:09.6]} 32... Qd3 {[%clk 0:00:31.3]} 33. f3 {[%clk
0:00:08.2]} 33... c3 {[%clk 0:00:26.6]} 34. Kh2 {[%clk 0:00:06.8]} 34... c2
{[%clk 0:00:21.9]} 35. fxe4 {[%clk 0:00:06.5]} 35... Qd2 {[%clk 0:00:22.4]} 36.
Nd5 {[%clk 0:00:03.7]} 36... c1=Q {[%clk 0:00:21.8]} 37. Nxf6+ {[%clk
0:00:02.9]} 37... Kg6 {[%clk 0:00:22.1]} 38. Rxc1 {[%clk 0:00:03.8]} 38... Qxc1
{[%clk 0:00:22.7]} 39. Nd5 {[%clk 0:00:03.5]} 39... Qc4 {[%clk 0:00:22.6]} 40.
Ne7+ {[%clk 0:00:03.4]} 40... Kf6 {[%clk 0:00:19]} 41. Nf5 {[%clk 0:00:01.1]}
41... Qxe4 {[%clk 0:00:18.3]} 42. Nd6 {[%clk 0:00:01.4]} 42... Qd5 {[%clk
0:00:17.6]} 43. a3 {[%clk 0:00:01.3]} 43... a5 {[%clk 0:00:17.5]} 0-1